[Event "RUS-ch Women Blitz 2019"]
[Site "Sochi"]
[Date "2019.10.17"]
[Round "2.12"]
[White "But, Svetlana"]
[Black "Shafigullina, Zarina"]
[Result "0-1"]
[ECO "A46"]
[WhiteElo "1947"]
[BlackElo "2295"]
[Annotator "NA"]
[PlyCount "144"]
[EventDate "2019.10.17"]
[EventType "swiss"]
[EventCountry "RUS"]
[SourceTitle "playchess.com"]
[Source "ChessBase"]
[SourceQuality "1"]
[TimeControl "180+2"]

1. d4 {[%emt 0:00:00]} Nf6 {[%emt 0:00:00]} 2. Nf3 {[%emt 0:00:01]} e6 {[%emt 0:00:00]} 3. g3 {[%emt 0:00:01]} b6 {[%emt 0:00:01]} 4. Bg2 Bb7 5. O-O {[%emt 0:00:02]} c5 {[%emt 0:00:02]} 6. c3 {[%emt 0:00:02]} Be7 {[%emt 0:00:02]} 7. Bg5 {[%emt 0:00:04]} h6 {[%emt 0:00:03]} 8. Bxf6 {[%emt 0:00:01]} Bxf6 {[%emt 0:00:01]} 9. Nbd2 {[%emt 0:00:03]} d5 {[%emt 0:00:08]} 10. e3 {[%emt 0:00:03]} O-O {[%emt 0:00:02]} 11. Re1 {[%emt 0:00:03]} Nc6 {[%emt 0:00:05]} 12. Qe2 {[%emt 0:00:03]} Rb8 {[%emt 0:00:24]} 13. Nb3 {[%emt 0:00:04]} Qe7 {[%emt 0:00:11]} 14. a4 {[%emt 0:00:08]} a6 {[%emt 0:00:06]} 15. Nbd2 {[%emt 0:00:03]} Rfd8 {[%emt 0:00:03]} 16. h3 {[%emt 0:00:06]} e5 {[%emt 0:00:15]} 17. dxe5 {[%emt 0:00:01]} Nxe5 {[%emt 0:00:01]} 18. Nxe5 {[%emt 0:00:01]} Bxe5 {[%emt 0:00:02]} 19. Nf3 {[%emt 0:00:03]} Bc7 {[%emt 0:00:02]} 20. Nd2 {[%emt 0:00:08]} Re8 {[%emt 0:00:13]} 21. Qd3 {[%emt 0:00:07]} Rbd8 {[%emt 0:00:04]} 22. Qf5 {[%emt 0:00:03]} Qe6 {[%emt 0:00:17]} 23. Qxe6 {[%emt 0:00:02]} fxe6 {[%emt 0:00:05]} 24. b4 {[%emt 0:00:01]} cxb4 {[%emt 0:00:03]} 25. cxb4 {[%emt 0:00:01]} Bd6 {[%emt 0:00:01]} 26. Rab1 {[%emt 0:00:06]} Rc8 {[%emt 0:00:01]} 27. b5 a5 28. Rec1 {[%emt 0:00:12]} Ba3 {[%emt 0:00:01]} 29. Rxc8 Rxc8 {[%emt 0:00:01]} 30. Nb3 {[%emt 0:00:14]} Rc4 {[%emt 0:00:05]} 31. Nd4 {[%emt 0:00:03]} Kf7 {[%emt 0:00:12]} 32. h4 {[%emt 0:00:15]} Bd6 {[%emt 0:00:28]} 33. Bf1 {[%emt 0:00:22]} Rxa4 {[%emt 0:00:21]} 34. Bh3 {[%emt 0:00:01]} e5 {[%emt 0:00:07]} 35. Nc6 {[%emt 0:00:12]} Bxc6 {[%emt 0:00:09]} 36. bxc6 {[%emt 0:00:01]} Rb4 {[%emt 0:00:02]} 37. Rc1 {[%emt 0:00:04]} Bc7 {[%emt 0:00:03]} 38. Bg2 {[%emt 0:00:06]} Ke6 {[%emt 0:00:02]} 39. Bh3+ {[%emt 0:00:01]} Kd6 {[%emt 0:00:02]} 40. Bd7 {[%emt 0:00:02]} a4 {[%emt 0:00:04]} 41. Rd1 {[%emt 0:00:03]} b5 {[%emt 0:00:04]} 42. Ra1 {[%emt 0:00:19]} Rb3 {[%emt 0:00:02]} 43. Kf1 {[%emt 0:00:06]} a3 {[%emt 0:00:01]} 44. Be8 {[%emt 0:00:12]} b4 {[%emt 0:00:01]} 45. Bf7 {[%emt 0:00:02]} Rb2 {[%emt 0:00:04]} 46. e4 {[%emt 0:00:08]} a2 {[%emt 0:00:02]} 47. Kg2 {[%emt 0:00:04]} b3 {[%emt 0:00:04]} 48. Bxd5 {[%emt 0:00:03]} Rb1 {[%emt 0:00:01]} 49. Rxa2 bxa2 {[%emt 0:00:02]} 50. Bxa2 {[%emt 0:00:02]} Rb2 {[%emt 0:00:02]} 51. Bd5 {[%emt 0:00:02]} Bb6 {[%emt 0:00:00]} 52. h5 {[%emt 0:00:02]} Bxf2 53. Kh3 Be3 {[%emt 0:00:08]} 54. Kg4 {[%emt 0:00:02]} Rf2 {[%emt 0:00:03]} 55. Kh3 {[%emt 0:00:05]} Bg5 {[%emt 0:00:03]} 56. Kg4 {[%emt 0:00:03]} Rf1 {[%emt 0:00:03]} 57. Kh3 {[%emt 0:00:01]} Rf8 {[%emt 0:00:03]} 58. Kg4 {[%emt 0:00:01]} Bd8 {[%emt 0:00:04]} 59. Kh3 {[%emt 0:00:01]} Kc5 {[%emt 0:00:02]} 60. Kg4 {[%emt 0:00:05]} Kd4 {[%emt 0:00:01]} 61. Kh3 {[%emt 0:00:04]} Ke3 {[%emt 0:00:01]} 62. Kg4 {[%emt 0:00:00]} Kf2 {[%emt 0:00:03]} 63. Be6 {[%emt 0:00:04]} Rf3 {[%emt 0:00:02]} 64. Bd7 {[%emt 0:00:05]} Rxg3+ 65. Kf5 Rg5+ {[%emt 0:00:09]} 66. Ke6 {[%emt 0:00:03]} Rxh5 {[%emt 0:00:03]} 67. Kd6 {[%emt 0:00:01]} Rg5 {[%emt 0:00:03]} 68. Bf5 {[%emt 0:00:09]} h5 {[%emt 0:00:04]} 69. c7 {[%emt 0:00:01]} Bxc7+ {[%emt 0:00:02]} 70. Kxc7 {[%emt 0:00:01]} Ke3 {[%emt 0:00:01]} 71. Be6 {[%emt 0:00:02]} Kxe4 {[%emt 0:00:01]} 72. Kd6 {[%emt 0:00:01]} Kd4 {[%emt 0:00:02]} 0-1

[Event "RUS-ch Women Blitz 2019"]
[Site "Sochi"]
[Date "2019.10.17"]
[Round "3"]
[White "Shafigullina, Zarina"]
[Black "Samigullina, Diana"]
[Result "1/2-1/2"]
[ECO "A46"]
[WhiteElo "2295"]
[BlackElo "2161"]
[Annotator "NA RC"]
[PlyCount "332"]
[EventDate "2019.10.17"]
[EventType "swiss"]
[EventCountry "RUS"]
[SourceTitle "playchess.com"]
[Source "ChessBase"]
[SourceQuality "1"]
[TimeControl "180+2"]

1. d4 {[%emt 0:00:00]} Nf6 {[%emt 0:00:00]} 2. Nf3 {[%emt 0:00:00]} d5 {[%emt 0:00:04]} 3. c4 {[%emt 0:00:02]} c6 {[%emt 0:00:01]} 4. g3 {[%emt 0:00:01]} Bf5 {[%emt 0:00:05]} 5. Nc3 {[%emt 0:00:06]} e6 {[%emt 0:00:01]} 6. Nh4 {[%emt 0:00:01]} Be4 {[%emt 0:00:01]} 7. f3 {[%emt 0:00:05]} Bg6 {[%emt 0:00:01]} 8. Nxg6 {[%emt 0:00:02]} hxg6 {[%emt 0:00:01]} 9. Qb3 {[%emt 0:00:01]} Qb6 {[%emt 0:00:03]} 10. c5 {[%emt 0:00:02]} Qc7 {[%emt 0:00:01]} 11. Bg2 {[%emt 0:00:04]} Nbd7 {[%emt 0:00:12]} 12. Bf4 {[%emt 0:00:40]} Qc8 {[%emt 0:00:02]} 13. Qc2 {[%emt 0:00:03]} Nh5 {[%emt 0:00:17]} 14. Bd2 {[%emt 0:00:02]} e5 {[%emt 0:00:03]} 15. e3 {[%emt 0:00:02]} Be7 {[%emt 0:00:03]} 16. b4 {[%emt 0:00:01]} a6 {[%emt 0:00:31]} 17. Kf2 {[%emt 0:00:08]} O-O {[%emt 0:00:10]} 18. Ne2 {[%emt 0:00:07]} f5 {[%emt 0:00:08]} 19. dxe5 {[%emt 0:00:13]} Nxe5 {[%emt 0:00:00]} 20. Bc3 {[%emt 0:00:06]} Bf6 {[%emt 0:00:02]} 21. Bd4 {[%emt 0:00:07]} Nc4 {[%emt 0:00:02]} 22. Rhe1 {[%emt 0:00:12]} Re8 {[%emt 0:00:02]} 23. Qd3 {[%emt 0:00:28]} Qe6 {[%emt 0:00:08]} 24. Bxf6 {[%emt 0:00:07]} Qxf6 {[%emt 0:00:09]} 25. Nd4 {[%emt 0:00:04]} Re7 {[%emt 0:00:09]} 26. Kg1 {[%emt 0:00:12]} Qf7 {[%emt 0:00:04]} 27. Rac1 {[%emt 0:00:04]} Rae8 {[%emt 0:00:02]} 28. e4 {[%emt 0:00:08]} Ne5 {[%emt 0:00:07]} 29. Qc3 {[%emt 0:00:15]} dxe4 {[%emt 0:00:17]} 30. fxe4 {[%emt 0:00:03]} fxe4 {[%emt 0:00:06]} 31. Bxe4 {[%emt 0:00:19]} Nf6 {[%emt 0:00:02]} 32. Bg2 {[%emt 0:00:02]} Neg4 {[%emt 0:00:05]} 33. Rxe7 {[%emt 0:00:13]} Qxe7 {[%emt 0:00:03]} 34. Qb3+ {[%emt 0:00:02]} Qf7 {[%emt 0:00:05]} 35. Qxf7+ {[%emt 0:00:03]} Kxf7 {[%emt 0:00:00]} 36. h3 {[%emt 0:00:03]} Ne3 {[%emt 0:00:04]} 37. Bf3 {[%emt 0:00:02]} Ned5 {[%emt 0:00:02]} 38. a3 {[%emt 0:00:01]} Re3 {[%emt 0:00:02]} 39. Ra1 {[%emt 0:00:02]} Rd3 {[%emt 0:00:02]} 40. Rd1 {[%emt 0:00:02]} Rxa3 {[%emt 0:00:03]} 41. g4 {[%emt 0:00:01]} Nxb4 {[%emt 0:00:08]} 42. Kf2 {[%emt 0:00:02]} Nbd5 {[%emt 0:00:02]} 43. g5 {[%emt 0:00:02]} Nd7 {[%emt 0:00:03]} 44. Bxd5+ {[%emt 0:00:03]} cxd5 {[%emt 0:00:00]} 45. Nf3 {[%emt 0:00:02]} Nxc5 {[%emt 0:00:04]} 46. Rxd5 {[%emt 0:00:02]} Ne4+ {[%emt 0:00:02]} 47. Kg2 {[%emt 0:00:04]} Ra2+ {[%emt 0:00:01]} 48. Kg1 {[%emt 0:00:02]} Ke6 {[%emt 0:00:03]} 49. Re5+ {[%emt 0:00:01]} Kd6 {[%emt 0:00:02]} 50. Rxe4 {[%emt 0:00:01]} b5 {[%emt 0:00:02]} 51. Nd4 {[%emt 0:00:01]} b4 {[%emt 0:00:05]} 52. Re2 {[%emt 0:00:02]} Ra1+ {[%emt 0:00:02]} 53. Kf2 {[%emt 0:00:01]} a5 {[%emt 0:00:03]} 54. Ke3 {[%emt 0:00:02]} a4 {[%emt 0:00:03]} 55. Rd2 {[%emt 0:00:02]} Kc5 {[%emt 0:00:22]} 56. Rc2+ {[%emt 0:00:02]} Kd5 {[%emt 0:00:04]} 57. Rd2 {[%emt 0:00:01]} Kc5 {[%emt 0:00:01]} 58. Rc2+ {[%emt 0:00:00]} Kd5 {[%emt 0:00:00]} 59. Rd2 {[%emt 0:00:01]} Kc5 {[%emt 0:00:01]} 60. Rc2+ {[%emt 0:00:05]} Kd5 {[%emt 0:00:02]} 61. Rd2 {[%emt 0:00:04]} Kc5 {[%emt 0:00:01]} 62. Ne6+ {[%emt 0:00:03]} Kb6 {[%emt 0:00:04]} 63. Rd6+ {[%emt 0:00:01]} Kb7 {[%emt 0:00:04]} 64. Rd7+ {[%emt 0:00:01]} Kc6 {[%emt 0:00:03]} 65. Rd4 {[%emt 0:00:05]} b3 {[%emt 0:00:02]} 66. Nd8+ {[%emt 0:00:01]} Kc7 {[%emt 0:00:00]} 67. Ne6+ {[%emt 0:00:01]} Kc6 {[%emt 0:00:01]} 68. Nd8+ {[%emt 0:00:01]} Kb6 {[%emt 0:00:02]} 69. Nf7 {[%emt 0:00:03]} Kc5 {[%emt 0:00:03]} 70. Ne5 {[%emt 0:00:02]} b2 {[%emt 0:00:04]} 71. Nd3+ {[%emt 0:00:01]} Kc6 {[%emt 0:00:03]} 72. Nxb2 {[%emt 0:00:01]} a3 {[%emt 0:00:01]} 73. Nd3 {[%emt 0:00:03]} Rh1 {[%emt 0:00:02]} 74. Ra4 {[%emt 0:00:01]} Rxh3+ {[%emt 0:00:02]} 75. Ke4 {[%emt 0:00:01]} Rg3 {[%emt 0:00:06]} 76. Rxa3 {[%emt 0:00:04]} Rxg5 {[%emt 0:00:02]} 77. Ra6+ {[%emt 0:00:02]} Kb7 {[%emt 0:00:02]} 78. Re6 {[%emt 0:00:02]} Rg1 {[%emt 0:00:06]} 79. Kf3 {[%emt 0:00:02]} g5 {[%emt 0:00:04]} 80. Rg6 {[%emt 0:00:02]} g4+ {[%emt 0:00:01]} 81. Kf2 {[%emt 0:00:02]} Rd1 {[%emt 0:00:03]} 82. Ne5 {[%emt 0:00:02]} Rd2+ {[%emt 0:00:05]} 83. Ke3 {[%emt 0:00:02]} Rg2 {[%emt 0:00:07]} 84. Rxg7+ {[%emt 0:00:05]} Kb6 {[%emt 0:00:01]} 85. Nxg4 {[%emt 0:00:02]} Kc5 {[%emt 0:00:05]} 86. Kf3 {[%emt 0:00:01]} Ra2 {[%emt 0:00:02]} 87. Rc7+ {[%emt 0:00:01]} Kd6 {[%emt 0:00:01]} 88. Rc3 {[%emt 0:00:02]} Ra6 {[%emt 0:00:03]} 89. Ne3 {[%emt 0:00:03]} Rc6 {[%emt 0:00:01]} 90. Rd3+ {[%emt 0:00:01]} Kc7 {[%emt 0:00:01]} 91. Ke4 {[%emt 0:00:03]} Re6+ {[%emt 0:00:02]} 92. Kd4 {[%emt 0:00:02]} Rd6+ {[%emt 0:00:01]} 93. Nd5+ {[%emt 0:00:01]} Kd7 {[%emt 0:00:01]} 94. Kc4 {[%emt 0:00:02]} Rc6+ {[%emt 0:00:02]} 95. Kb5 {[%emt 0:00:01]} Rd6 {[%emt 0:00:03]} 96. Kc5 {[%emt 0:00:04]} Rc6+ {[%emt 0:00:03]} 97. Kd4 {[%emt 0:00:03]} Rd6 {[%emt 0:00:00]} 98. Ke4 {[%emt 0:00:01]} Re6+ {[%emt 0:00:01]} 99. Kf5 {[%emt 0:00:01]} Rd6 {[%emt 0:00:02]} 100. Rd1 {[%emt 0:00:02]} Kc6 {[%emt 0:00:05]} 101. Ke5 Rh6 {[%emt 0:00:05]} 102. Ne7+ {[%emt 0:00:05]} Kb6 {[%emt 0:00:03]} 103. Rb1+ {[%emt 0:00:02]} Kc5 {[%emt 0:00:01]} 104. Rc1+ {[%emt 0:00:01]} Kb4 {[%emt 0:00:01]} 105. Nf5 {[%emt 0:00:02]} Rh5 {[%emt 0:00:02]} 106. Ke4 {[%emt 0:00:03]} Kb3 {[%emt 0:00:03]} 107. Rc8 {[%emt 0:00:02]} Rh1 {[%emt 0:00:02]} 108. Nd4+ {[%emt 0:00:01]} Kb4 {[%emt 0:00:02]} 109. Nf3 {[%emt 0:00:03]} Kb5 {[%emt 0:00:02]} 110. Kd4 {[%emt 0:00:03]} Rd1+ {[%emt 0:00:01]} 111. Ke5 {[%emt 0:00:01]} Rh1 {[%emt 0:00:02]} 112. Nd4+ {[%emt 0:00:01]} Kb4 {[%emt 0:00:02]} 113. Rc2 {[%emt 0:00:04]} Rh5+ {[%emt 0:00:02]} 114. Nf5 {[%emt 0:00:01]} Rg5 {[%emt 0:00:02]} 115. Kf4 {[%emt 0:00:03]} Rg1 {[%emt 0:00:03]} 116. Ke4 {[%emt 0:00:02]} Rg4+ {[%emt 0:00:02]} 117. Ke5 {[%emt 0:00:02]} Rg1 {[%emt 0:00:03]} 118. Ne3 {[%emt 0:00:01]} Rh1 {[%emt 0:00:02]} 119. Ke4 {[%emt 0:00:02]} Rh4+ {[%emt 0:00:01]} 120. Kd3 {[%emt 0:00:01]} Rh3 {[%emt 0:00:01]} 121. Rc8 {[%emt 0:00:03]} Rg3 {[%emt 0:00:02]} 122. Kd4 {[%emt 0:00:01]} Rh3 {[%emt 0:00:02]} 123. Rb8+ {[%emt 0:00:01]} Ka3 {[%emt 0:00:03]} 124. Nd5 {[%emt 0:00:04]} Rh4+ {[%emt 0:00:02]} 125. Kc5 {[%emt 0:00:02]} Rh5 {[%emt 0:00:01]} 126. Kc4 {[%emt 0:00:02]} Rh4+ {[%emt 0:00:01]} 127. Kc5 {[%emt 0:00:02]} Rh5 {[%emt 0:00:01]} 128. Rb7 {[%emt 0:00:02]} Rg5 {[%emt 0:00:02]} 129. Kd4 {[%emt 0:00:02]} Rg4+ {[%emt 0:00:01]} 130. Kd3 {[%emt 0:00:02]} Rg3+ {[%emt 0:00:01]} 131. Ne3 {[%emt 0:00:00]} Rh3 {[%emt 0:00:01]} 132. Rb8 {[%emt 0:00:01]} Rg3 {[%emt 0:00:02]} 133. Kd4 {[%emt 0:00:02]} Rh3 {[%emt 0:00:02]} 134. Nc4+ {[%emt 0:00:02]} Ka4 {[%emt 0:00:04]} 135. Nd2 {[%emt 0:00:03]} Rh4+ {[%emt 0:00:02]} 136. Ne4 {[%emt 0:00:01]} Rg4 {[%emt 0:00:02]} 137. Kd5 {[%emt 0:00:01]} Rh4 {[%emt 0:00:02]} 138. Rb1 {[%emt 0:00:03]} Rh5+ {[%emt 0:00:02]} 139. Kc4 {[%emt 0:00:01]} Ka3 {[%emt 0:00:07]} 140. Rb8 {[%emt 0:00:06]} Rh4 {[%emt 0:00:01]} 141. Kd4 {[%emt 0:00:01]} Ka4 {[%emt 0:00:03]} 142. Kd3 {[%emt 0:00:03]} Rh3+ {[%emt 0:00:01]} 143. Kc4 {[%emt 0:00:00]} Ka3 {[%emt 0:00:03]} 144. Nf2 {[%emt 0:00:03]} Rh4+ {[%emt 0:00:01]} 145. Kc3 {[%emt 0:00:01]} Ka4 {[%emt 0:00:02]} 146. Nd3 {[%emt 0:00:02]} Rh3 {[%emt 0:00:02]} 147. Rb7 {[%emt 0:00:02]} Ka5 {[%emt 0:00:02]} 148. Kc4 {[%emt 0:00:02]} Rh4+ {[%emt 0:00:03]} 149. Kc5 {[%emt 0:00:03]} Rh5+ {[%emt 0:00:01]} 150. Kd4 {[%emt 0:00:03]} Rh4+ {[%emt 0:00:01]} 151. Kc3 {[%emt 0:00:01]} Rh3 {[%emt 0:00:02]} 152. Rb8 {[%emt 0:00:01]} Ka6 {[%emt 0:00:02]} 153. Rb1 {[%emt 0:00:01]} Ka5 {[%emt 0:00:03]} 154. Kc4 {[%emt 0:00:05]} Rh4+ {[%emt 0:00:01]} 155. Kd5 {[%emt 0:00:01]} Rh5+ {[%emt 0:00:02]} 156. Ne5 {[%emt 0:00:01]} Ka4 {[%emt 0:00:01]} 157. Rb8 {[%emt 0:00:03]} Ka3 {[%emt 0:00:03]} 158. Ke4 {[%emt 0:00:03]} Rh4+ {[%emt 0:00:01]} 159. Kd3 {[%emt 0:00:02]} Rh3+ {[%emt 0:00:01]} 160. Ke4 {[%emt 0:00:01]} Rh4+ {[%emt 0:00:02]} 161. Kd5 {[%emt 0:00:02]} Rh5 {[%emt 0:00:01]} 162. Rb7 {[%emt 0:00:02]} Ka2 {[%emt 0:00:04]} 163. Kd4 {[%emt 0:00:03]} Rh4+ {[%emt 0:00:01]} 164. Kc5 {[%emt 0:00:01]} Rh5 {[%emt 0:00:02]} 165. Kd5 {[%emt 0:00:01]} Ka3 {[%emt 0:00:03]} 166. Ke4 {[%emt 0:00:03]} Rh4+ {[%emt 0:00:02]} 1/2-1/2

[Event "RUS-ch Women Blitz 2019"]
[Site "Sochi"]
[Date "2019.10.20"]
[Round "3.1"]
[White "Bodnaruk, Anastasia"]
[Black "Badelka, Olga"]
[Result "1/2-1/2"]
[ECO "B32"]
[WhiteElo "2419"]
[BlackElo "2150"]
[Annotator "NA"]
[PlyCount "119"]
[EventDate "2019.10.17"]
[EventType "swiss"]
[EventCountry "RUS"]
[SourceTitle "playchess.com"]
[Source "ChessBase"]
[SourceQuality "1"]
[TimeControl "180+2"]

1. e4 {[%emt 0:00:00]} c5 {[%emt 0:00:00]} 2. Nf3 {[%emt 0:00:00]} Nc6 {[%emt 0:00:00]} 3. d4 {[%emt 0:00:00]} cxd4 4. Nxd4 e5 {[%emt 0:00:01]} 5. Nb5 {[%emt 0:00:02]} d6 {[%emt 0:00:01]} 6. N1c3 {[%emt 0:00:03]} a6 {[%emt 0:00:01]} 7. Na3 {[%emt 0:00:01]} Be7 {[%emt 0:00:06]} 8. Nc4 {[%emt 0:00:02]} b5 {[%emt 0:00:04]} 9. Ne3 {[%emt 0:00:02]} Nf6 {[%emt 0:00:01]} 10. Bd3 {[%emt 0:00:10]} O-O {[%emt 0:00:05]} 11. O-O {[%emt 0:00:01]} Nb4 {[%emt 0:00:03]} 12. Ned5 {[%emt 0:00:12]} Nfxd5 {[%emt 0:00:07]} 13. Nxd5 {[%emt 0:00:13]} Nxd5 14. exd5 {[%emt 0:00:02]} f5 {[%emt 0:00:07]} 15. a4 {[%emt 0:00:06]} e4 {[%emt 0:00:08]} 16. Be2 {[%emt 0:00:01]} b4 {[%emt 0:00:04]} 17. a5 {[%emt 0:00:16]} Bf6 {[%emt 0:00:05]} 18. f4 {[%emt 0:00:18]} Qc7 {[%emt 0:00:09]} 19. Kh1 {[%emt 0:00:17]} Qc5 {[%emt 0:00:01]} 20. Ra2 {[%emt 0:00:21]} Bb7 {[%emt 0:00:04]} 21. b3 {[%emt 0:00:05]} Bxd5 {[%emt 0:00:14]} 22. Be3 {[%emt 0:00:05]} Qc6 {[%emt 0:00:01]} 23. Bb6 {[%emt 0:00:18]} Bf7 {[%emt 0:00:16]} 24. Bd4 {[%emt 0:00:09]} Be7 {[%emt 0:00:41]} 25. Qd2 {[%emt 0:00:16]} d5 {[%emt 0:00:04]} 26. Qe3 {[%emt 0:00:01]} Rfd8 {[%emt 0:00:20]} 27. Rd1 {[%emt 0:00:03]} Bf6 {[%emt 0:00:03]} 28. g3 {[%emt 0:00:09]} Bxd4 {[%emt 0:00:04]} 29. Qxd4 {[%emt 0:00:01]} Qc3 {[%emt 0:00:04]} 30. Kg2 {[%emt 0:00:14]} Be6 {[%emt 0:00:19]} 31. Qxc3 {[%emt 0:00:04]} bxc3 32. Ra4 Rdb8 {[%emt 0:00:21]} 33. Kf2 {[%emt 0:00:07]} Bd7 {[%emt 0:00:10]} 34. Rad4 {[%emt 0:00:09]} Bc6 {[%emt 0:00:01]} 35. Ke3 {[%emt 0:00:03]} Kf7 {[%emt 0:00:02]} 36. Rb1 {[%emt 0:00:04]} Ke6 {[%emt 0:00:02]} 37. g4 {[%emt 0:00:04]} g6 {[%emt 0:00:04]} 38. h3 {[%emt 0:00:01]} Bb5 {[%emt 0:00:03]} 39. Ra1 {[%emt 0:00:12]} Bxe2 40. Kxe2 {[%emt 0:00:01]} Rb5 {[%emt 0:00:06]} 41. g5 {[%emt 0:00:01]} Rab8 {[%emt 0:00:03]} 42. Raa4 {[%emt 0:00:01]} Rc5 {[%emt 0:00:05]} 43. Ra1 {[%emt 0:00:03]} Rbb5 {[%emt 0:00:02]} 44. Rda4 {[%emt 0:00:04]} d4 {[%emt 0:00:10]} 45. Rxd4 {[%emt 0:00:02]} Rxa5 {[%emt 0:00:01]} 46. Rad1 {[%emt 0:00:03]} Rc6 {[%emt 0:00:03]} 47. Ke3 {[%emt 0:00:02]} Ra2 {[%emt 0:00:01]} 48. Rd8 {[%emt 0:00:02]} Rxc2 {[%emt 0:00:02]} 49. Re8+ {[%emt 0:00:02]} Kf7 {[%emt 0:00:02]} 50. Rh8 {[%emt 0:00:01]} Kg7 {[%emt 0:00:03]} 51. Rhd8 {[%emt 0:00:01]} Rc7 {[%emt 0:00:01]} 52. R8d7+ {[%emt 0:00:04]} Rxd7 {[%emt 0:00:00]} 53. Rxd7+ {[%emt 0:00:01]} Kg8 {[%emt 0:00:02]} 54. Rc7 {[%emt 0:00:01]} Rc1 {[%emt 0:00:01]} 55. Kd4 {[%emt 0:00:02]} c2 {[%emt 0:00:08]} 56. Ke5 {[%emt 0:00:01]} Kf8 {[%emt 0:00:03]} 57. Ke6 {[%emt 0:00:05]} e3 {[%emt 0:00:01]} 58. Rc8+ {[%emt 0:00:01]} Kg7 59. Rc7+ Kf8 {[%emt 0:00:02]} 60. Rc8+ {[%emt 0:00:01]} 1/2-1/2

[Event "RUS-ch Women Blitz 2019"]
[Site "Sochi"]
[Date "2019.10.17"]
[Round "3.1"]
[White "Vasilevich, Tatjana"]
[Black "Voit, Daria"]
[Result "0-1"]
[ECO "A40"]
[WhiteElo "2360"]
[BlackElo "2336"]
[Annotator "NA"]
[PlyCount "89"]
[EventDate "2019.10.17"]
[EventType "swiss"]
[EventCountry "RUS"]
[SourceTitle "playchess.com"]
[Source "ChessBase"]
[SourceQuality "1"]
[TimeControl "180+2"]

1. d4 {[%emt 0:00:00]} Nf6 {[%emt 0:00:00]} 2. c4 {[%emt 0:00:00]} e6 {[%emt 0:00:01]} 3. g3 {[%emt 0:00:02]} c5 {[%emt 0:00:01]} 4. d5 {[%emt 0:00:01]} exd5 {[%emt 0:00:01]} 5. cxd5 {[%emt 0:00:01]} g6 {[%emt 0:00:01]} 6. Nc3 {[%emt 0:00:02]} Bg7 {[%emt 0:00:01]} 7. Bg2 {[%emt 0:00:01]} O-O {[%emt 0:00:03]} 8. e4 {[%emt 0:00:01]} d6 {[%emt 0:00:01]} 9. Nge2 {[%emt 0:00:02]} b6 {[%emt 0:00:36]} 10. O-O {[%emt 0:00:05]} Ba6 {[%emt 0:00:01]} 11. h3 {[%emt 0:00:32]} b5 {[%emt 0:00:17]} 12. a3 {[%emt 0:01:02]} b4 13. Na4 {[%emt 0:00:01]} Re8 {[%emt 0:00:10]} 14. f3 {[%emt 0:00:02]} Nbd7 {[%emt 0:00:21]} 15. Bf4 {[%emt 0:00:16]} Nb6 {[%emt 0:00:14]} 16. axb4 {[%emt 0:00:10]} cxb4 {[%emt 0:00:06]} 17. Re1 {[%emt 0:00:02]} Bb5 {[%emt 0:00:17]} 18. Nxb6 {[%emt 0:00:21]} Qxb6+ {[%emt 0:00:01]} 19. Kh2 {[%emt 0:00:06]} Nh5 {[%emt 0:00:02]} 20. Qd2 {[%emt 0:00:07]} Nxf4 {[%emt 0:00:08]} 21. Nxf4 {[%emt 0:00:03]} a5 {[%emt 0:00:01]} 22. Rac1 {[%emt 0:00:16]} Rec8 {[%emt 0:00:12]} 23. Bf1 {[%emt 0:00:01]} Bxf1 {[%emt 0:00:14]} 24. Rxf1 {[%emt 0:00:06]} Qd4 25. Nd3 b3 {[%emt 0:00:25]} 26. Rf2 {[%emt 0:00:10]} a4 {[%emt 0:00:07]} 27. Rc6 {[%emt 0:00:11]} Rxc6 {[%emt 0:00:15]} 28. dxc6 {[%emt 0:00:01]} Rc8 {[%emt 0:00:01]} 29. Nb4 {[%emt 0:00:03]} Qc5 {[%emt 0:00:08]} 30. Nd5 {[%emt 0:00:07]} Rxc6 {[%emt 0:00:08]} 31. Ne7+ {[%emt 0:00:01]} Kf8 {[%emt 0:00:01]} 32. Nxc6 {[%emt 0:00:01]} Qxc6 {[%emt 0:00:01]} 33. Qb4 {[%emt 0:00:03]} Kg8 {[%emt 0:00:06]} 34. Rd2 {[%emt 0:00:01]} Be5 {[%emt 0:00:04]} 35. f4 {[%emt 0:00:03]} Bf6 {[%emt 0:00:03]} 36. Rxd6 {[%emt 0:00:03]} Qc2+ {[%emt 0:00:00]} 37. Rd2 {[%emt 0:00:01]} Qc1 {[%emt 0:00:01]} 38. e5 {[%emt 0:00:02]} Be7 {[%emt 0:00:03]} 39. Qd4 {[%emt 0:00:05]} a3 {[%emt 0:00:02]} 40. bxa3 {[%emt 0:00:02]} Bxa3 {[%emt 0:00:01]} 41. e6 {[%emt 0:00:04]} fxe6 {[%emt 0:00:02]} 42. Qd8+ {[%emt 0:00:02]} Bf8 {[%emt 0:00:02]} 43. Qd4 {[%emt 0:00:06]} Ba3 {[%emt 0:00:02]} 44. Qd8+ {[%emt 0:00:02]} Bf8 {[%emt 0:00:02]} 45. Qd4 {[%emt 0:00:02]} 0-1